fUSD/lending_fUSD_20250807
["ID","MTS","AMOUNT","RATE_DAILY","PERIOD"]
[377823902,1754567446736,-1222.37,0.00019983,2]
[377823904,1754567446746,-400.0,0.00019983,2]
[377823906,1754567446757,-980.41,0.00019983,2]
[377823908,1754567446766,-400.0,0.00019983,2]
[377823910,1754567446777,-151.0,0.00019983,2]
[377823912,1754567446787,-400.0,0.00019983,2]
[377823914,1754567446796,-801.15,0.00019983,2]
[377823916,1754567446805,-1559.95,0.00019983,2]
[377823918,1754567446814,-400.0,0.00019983,2]
[377823920,1754567446824,-400.0,0.00019983,2]
[377823922,1754567446833,-400.0,0.00019983,2]
[377823924,1754567446845,-400.0,0.00019983,2]
[377823926,1754567446854,-506.8,0.00019983,2]
[377823928,1754567446864,-400.0,0.00019983,2]
[377823930,1754567446874,-654.47,0.00019983,2]
[377823932,1754567446883,-532.02,0.00019983,2]
[377823934,1754567446893,-1349.64,0.00019983,2]
[377823936,1754567446902,-1647.63,0.00019983,2]
[377823938,1754567446912,-418.61,0.00019983,2]
[377823940,1754567446921,-400.0,0.00019983,2]
[377823942,1754567446930,-480.4,0.00019983,2]
[377823944,1754567446939,-1508.8,0.00019983,2]
[377823946,1754567446948,-1262.82,0.00019983,2]
[377823948,1754567446958,-151.0,0.00019983,2]
[377823950,1754567446967,-955.76,0.00019983,2]
[377823952,1754567446976,-400.0,0.00019983,2]
[377823954,1754567446986,-926.14,0.00019983,2]
[377823956,1754567446995,-419.94,0.00019983,2]
[377823958,1754567447006,-1157.11,0.00019983,2]
[377823960,1754567447016,-1080.69,0.00019983,2]
[377823962,1754567447025,-494.28,0.00019983,2]
[377823964,1754567447035,-400.0,0.00019983,2]
[377823966,1754567447044,-432.18,0.00019983,2]
[377823967,1754567447054,-523.31,0.00019983,2]
[377823970,1754567447064,-1825.26,0.00019983,2]
[377823972,1754567447074,-400.0,0.00019983,2]
[377823974,1754567447083,-400.0,0.00019983,2]
[377823976,1754567447094,-482.66,0.00019983,2]
[377823978,1754567447104,-642.38,0.00019983,2]
[377823980,1754567447114,-400.0,0.00019983,2]
[377823982,1754567447123,-1096.84,0.00019983,2]
[377823984,1754567447133,-862.15,0.00019983,2]
[377823986,1754567447143,-400.0,0.00019983,2]
[377823987,1754567447152,-664.19,0.00019983,2]
[377823990,1754567447163,-454.08,0.00019983,2]
[377823992,1754567447172,-400.0,0.00019983,2]
[377823994,1754567447182,-400.0,0.00019983,2]
[377823996,1754567447192,-687.76,0.00019983,2]
[377823997,1754567447201,-891.49,0.00019983,2]
[377824000,1754567447211,-403.09842259,0.00019983,2]
[377824001,1754567447220,-400.0,0.00019983,2]
[377824003,1754567447229,-1161.3,0.00019983,2]
[377824006,1754567447239,-213.47705279,0.00019983,2]
[377824007,1754567447248,-1018.32,0.00019983,2]
[377824009,1754567447263,-400.0,0.00019983,2]
[377824011,1754567447273,-400.0,0.00019983,2]
[377824014,1754567447282,-500.0,0.00019983,2]
[377824015,1754567447292,-400.0,0.00019983,2]
[377824018,1754567447302,-400.0,0.00019983,2]
[377824020,1754567447311,-400.0,0.00019983,2]
[377824022,1754567447321,-400.0,0.00019983,2]
[377824024,1754567447331,-400.0,0.00019983,2]
[377824025,1754567447341,-1759.86,0.00019983,2]
[377824027,1754567447351,-400.0,0.00019983,2]
[377824030,1754567447361,-488.5,0.00019983,2]
[377824031,1754567447371,-1003.56,0.00019983,2]
[377824034,1754567447380,-454.94,0.00019983,2]
[377824036,1754567447390,-1721.86,0.00019983,2]
[377824038,1754567447400,-789.02,0.00019983,2]
[377824040,1754567447410,-578.73,0.00019983,2]
[377824042,1754567447419,-441.32,0.00019983,2]
[377824043,1754567447429,-588.01,0.00019983,2]
[377824045,1754567447438,-756.68,0.00019983,2]
[377824047,1754567447447,-500.0,0.00019983,2]
[377824049,1754567447456,-1082.34,0.00019983,2]
[377824051,1754567447466,-400.0,0.00019983,2]
[377824053,1754567447476,-459.69,0.00019983,2]
[377824055,1754567447485,-400.0,0.00019983,2]
[377824057,1754567447496,-400.0,0.00019983,2]
[377824060,1754567447509,-400.0,0.00019983,2]
[377824062,1754567447521,-461.87,0.00019983,2]
[377824063,1754567447530,-400.0,0.00019983,2]
[377824066,1754567447539,-400.0,0.00019983,2]
[377824068,1754567447550,-653.15,0.00019983,2]
[377824070,1754567447560,-400.0,0.00019983,2]
[377824072,1754567447570,-400.0,0.00019983,2]
[377824083,1754567447669,-3404.54,0.00019983,2]
[377824085,1754567447679,-1669.94,0.00019983,2]
[377824087,1754567447689,-876.32,0.00019983,2]
[377824089,1754567447699,-621.43,0.00019983,2]
[377824091,1754567447708,-400.0,0.00019983,2]
[377824093,1754567447717,-612.92,0.00019983,2]
[377824095,1754567447726,-1848.12,0.00019983,2]
[377824097,1754567447736,-782.48,0.00019983,2]
[377824099,1754567447745,-400.0,0.00019983,2]
[377824101,1754567447756,-400.0,0.00019983,2]
[377824103,1754567447766,-151.0,0.00019983,2]
[377824105,1754567447775,-400.0,0.00019983,2]
[377824107,1754567447784,-1583.76,0.00019983,2]
[377824109,1754567447795,-500.0,0.00019983,2]
[377824111,1754567447804,-400.0,0.00019983,2]
[377824113,1754567447813,-926.43,0.00019983,2]
[377824115,1754567447823,-605.56,0.00019983,2]
[377824117,1754567447832,-779.98,0.00019983,2]
[377824119,1754567447841,-1767.15,0.00019983,2]
[377824121,1754567447850,-151.0,0.00019983,2]
[377824123,1754567447859,-400.0,0.00019983,2]
[377824125,1754567447869,-400.0,0.00019983,2]
[377824127,1754567447878,-1203.25,0.00019983,2]
[377824129,1754567447887,-1415.42,0.00019983,2]
[377824131,1754567447897,-400.0,0.00019983,2]
[377824133,1754567447906,-151.0,0.00019983,2]
[377824135,1754567447915,-400.0,0.00019983,2]
[377824137,1754567447924,-585.4,0.00019983,2]
[377824139,1754567447933,-641.77,0.00019983,2]
[377824141,1754567447942,-403.10967635,0.00019983,2]
[377824143,1754567447951,-151.0,0.00019983,2]
[377824145,1754567447960,-400.0,0.00019983,2]
[377824147,1754567447969,-2725.82,0.00019983,2]
[377824149,1754567447979,-623.89,0.00019983,2]
[377824150,1754567447988,-249.21621523,0.00019983,2]
[377824153,1754567447997,-400.0,0.00019983,2]
[377824155,1754567448010,-1343.0,0.00019983,2]
[377824156,1754567448019,-1532.09,0.00019983,2]
[377824158,1754567448029,-400.0,0.00019983,2]
[377824160,1754567448039,-400.0,0.00019983,2]
[377824162,1754567448049,-1542.2,0.00019983,2]
[377824164,1754567448059,-674.13,0.00019983,2]
[377824166,1754567448069,-400.0,0.00019983,2]
[377824168,1754567448079,-447.19,0.00019983,2]
[377824170,1754567448090,-491.28,0.00019983,2]
[377824172,1754567448100,-151.0,0.00019983,2]
[377824174,1754567448110,-400.0,0.00019983,2]
[377824176,1754567448119,-400.0,0.00019983,2]
[377824178,1754567448129,-790.05,0.00019983,2]
[377824180,1754567448138,-400.0,0.00019983,2]
[377824182,1754567448148,-1328.11,0.00019983,2]
[377824184,1754567448159,-805.62,0.00019983,2]
[377824186,1754567448169,-1764.25,0.00019983,2]
[377824188,1754567448179,-400.0,0.00019983,2]
[377824190,1754567448189,-1881.42,0.00019983,2]
[377824192,1754567448199,-400.0,0.00019983,2]
[377824194,1754567448209,-400.0,0.00019983,2]
[377824196,1754567448218,-400.0,0.00019983,2]
[377824198,1754567448227,-509.0,0.00019983,2]
[377824200,1754567448237,-400.0,0.00019983,2]
[377824202,1754567448248,-1517.74,0.00019983,2]
[377824204,1754567448260,-2126.36,0.00019983,2]
[377824206,1754567448271,-966.41,0.00019983,2]
[377824208,1754567448281,-400.0,0.00019983,2]
[377824210,1754567448291,-1948.47,0.00019983,2]
[377824212,1754567448300,-1993.55,0.00019983,2]
[377824214,1754567448310,-400.0,0.00019983,2]
[377824216,1754567448320,-151.0,0.00019983,2]
[377824218,1754567448330,-547.09843727,0.00019983,2]
[377824220,1754567448340,-2414.4,0.00019983,2]
[377824222,1754567448350,-1662.41,0.00019983,2]
[377824224,1754567448359,-400.0,0.00019983,2]
[377824226,1754567448369,-171.840348,0.00019983,2]
[377824228,1754567448379,-400.0,0.00019983,2]
[377824230,1754567448388,-400.0,0.00019983,2]
[377824232,1754567448398,-500.0,0.00019983,2]
[377824234,1754567448407,-257.9122438,0.00019983,2]
[377824236,1754567448417,-152.706907,0.00019983,2]
[377824239,1754567448427,-151.0,0.00019983,2]
[377824240,1754567448437,-590.36,0.00019983,2]
[377824242,1754567448446,-400.0,0.00019983,2]
[377824244,1754567448456,-400.0,0.00019983,2]
[377824246,1754567448466,-2164.76,0.00019983,2]
[377824248,1754567448476,-862.74,0.00019983,2]
[377824251,1754567448485,-303.25558015,0.00019983,2]
[377824252,1754567448496,-400.0,0.00019983,2]
[377824254,1754567448510,-1573.7,0.00019983,2]
[377824256,1754567448520,-151.0,0.00019983,2]
[377824258,1754567448529,-151.0,0.00019983,2]
[377824260,1754567448539,-151.0,0.00019983,2]
[377824262,1754567448549,-402.25221178,0.00019983,2]
[377824264,1754567448559,-400.0,0.00019983,2]
[377824266,1754567448568,-152.530127,0.00019983,2]
[377824268,1754567448578,-400.0,0.00019983,2]
[377824270,1754567448592,-400.0,0.00019983,2]
[377824272,1754567448602,-1173.95,0.00019983,2]
[377824274,1754567448612,-400.0,0.00019983,2]
[377824276,1754567448622,-1661.4,0.00019983,2]
[377824278,1754567448631,-589.59,0.00019983,2]
[377824280,1754567448641,-605.54,0.00019983,2]
[377824282,1754567448651,-151.0,0.00019983,2]
[377824284,1754567448661,-121.00889955,0.00019983,2]
[377824458,1754567450491,-548.80180824,0.00019981,2]
[377824482,1754567450718,-390.33819176,0.00019981,2]
[377824484,1754567450728,-278.99110045,0.00019983,2]
[377824486,1754567450738,-400.0,0.00019983,2]
[377824488,1754567450747,-151.0,0.00019983,2]
[377824490,1754567450758,-500.0,0.00019983,2]
[377824492,1754567450767,-151.0,0.00019983,2]
[377824494,1754567450776,-478.27250141,0.00019983,2]
[377824496,1754567450785,-400.0,0.00019983,2]
[377824498,1754567450794,-400.0,0.00019983,2]
[377824500,1754567450804,-151.0,0.00019983,2]
[377824502,1754567450813,-151.0,0.00019983,2]
[377824504,1754567450822,-1824.67,0.00019983,2]
[377824506,1754567450832,-400.0,0.00019983,2]
[377824508,1754567450841,-508.26,0.00019983,2]
[377824510,1754567450850,-400.0,0.00019983,2]
[377824512,1754567450859,-151.0,0.00019983,2]
[377824514,1754567450868,-151.0,0.00019983,2]
[377824516,1754567450878,-400.0,0.00019983,2]
[377824518,1754567450887,-400.0,0.00019983,2]
[377824520,1754567450896,-1139.59,0.00019983,2]
[377824522,1754567450905,-400.0,0.00019983,2]
[377824524,1754567450915,-1524.02,0.00019983,2]
[377824526,1754567450924,-151.0,0.00019983,2]
[377824528,1754567450934,-400.0,0.00019983,2]
[377824530,1754567450943,-400.0,0.00019983,2]
[377824532,1754567450952,-151.0,0.00019983,2]
[377824534,1754567450961,-400.0,0.00019983,2]
[377824536,1754567450970,-400.0,0.00019983,2]
[377824538,1754567450980,-1396.18721388,0.00019983,2]
[377824565,1754567451225,-615.98278612,0.00019983,2]
[377824567,1754567451235,-2308.48,0.00019983,2]
[377824569,1754567451243,-400.0,0.00019983,2]
[377824571,1754567451254,-151.0,0.00019983,2]
[377824573,1754567451263,-500.0,0.00019983,2]
[377824575,1754567451272,-753.77,0.00019983,2]
[377824577,1754567451281,-902.58,0.00019983,2]
[377824579,1754567451290,-400.0,0.00019983,2]
[377824581,1754567451299,-1605.89,0.00019983,2]
[377824583,1754567451308,-151.0,0.00019983,2]
[377824585,1754567451317,-1014.18,0.00019983,2]
[377824587,1754567451327,-151.0,0.00019983,2]
[377824589,1754567451335,-241.952937,0.00019983,2]
[377824591,1754567451344,-400.0,0.00019983,2]
[377824593,1754567451354,-400.0,0.00019983,2]
[377824595,1754567451363,-151.0,0.00019983,2]
[377824597,1754567451372,-273.275618,0.00019983,2]
[377824599,1754567451381,-673.03865888,0.00019983,2]
[377824694,1754567452398,519.0,0.00017474,2]
[377824703,1754567452484,-450.33,0.00019981,2]
[377824705,1754567452496,-320.76284441,0.00019982,2]
[377824711,1754567452552,-179.23715559,0.00019982,2]
[377824713,1754567452562,-1627.84134112,0.00019983,2]
[377824715,1754567452571,-801.84,0.00019983,2]
[377824717,1754567452581,-2410.53,0.00019983,2]
[377824719,1754567452592,-463.09,0.00019983,2]
[377824721,1754567452602,-695.07,0.00019983,2]
[377824723,1754567452611,-546.87,0.00019983,2]
[377824725,1754567452620,-2405.76,0.00019983,2]
[377824727,1754567452630,-632.07,0.00019983,2]
[377824729,1754567452639,-400.0,0.00019983,2]
[377824731,1754567452648,-1484.19,0.00019983,2]
[377824733,1754567452657,-941.33,0.00019983,2]
[377824735,1754567452667,-400.0,0.00019983,2]
[377824737,1754567452676,-1631.51,0.00019983,2]
[377824739,1754567452685,-400.0,0.00019983,2]
[377824741,1754567452694,-400.0,0.00019983,2]
[377824743,1754567452704,-1097.64,0.00019983,2]
[377824745,1754567452714,-2300.76,0.00019983,2]
[377824747,1754567452724,-400.0,0.00019983,2]
[377824749,1754567452733,-450.42,0.00019983,2]
[377824751,1754567452742,-151.0,0.00019983,2]
[377824753,1754567452752,-400.0,0.00019983,2]
[377824755,1754567452762,-400.0,0.00019983,2]
[377824757,1754567452771,-400.0,0.00019983,2]
[377824759,1754567452781,-400.0,0.00019983,2]
[377824761,1754567452790,-3722.37,0.00019983,2]
[377824763,1754567452799,-400.0,0.00019983,2]
[377824765,1754567452809,-151.0,0.00019983,2]
[377824767,1754567452819,-400.0,0.00019983,2]
[377824769,1754567452828,-567.72,0.00019983,2]
[377824771,1754567452838,-400.0,0.00019983,2]
[377824773,1754567452847,-400.0,0.00019983,2]
[377824775,1754567452857,-404.60720682,0.00019983,2]
[377824777,1754567452867,-557.34,0.00019983,2]
[377824779,1754567452876,-400.0,0.00019983,2]
[377824781,1754567452885,-400.0,0.00019983,2]
[377824783,1754567452894,-151.0,0.00019983,2]
[377824785,1754567452904,-1265.61,0.00019983,2]
[377824787,1754567452914,-151.0,0.00019983,2]
[377824789,1754567452923,-2013.45,0.00019983,2]
[377824791,1754567452933,-1318.32,0.00019983,2]
[377824793,1754567452943,-537.93,0.00019983,2]
[377824795,1754567452952,-400.0,0.00019983,2]
[377824797,1754567452962,-1882.91,0.00019983,2]
[377824799,1754567452971,-1219.57,0.00019983,2]
[377824801,1754567452981,-151.0,0.00019983,2]
[377824803,1754567452991,-2009.86,0.00019983,2]
[377824805,1754567453000,-151.0,0.00019983,2]
[377824807,1754567453012,-151.0,0.00019983,2]
[377824809,1754567453021,-280.454122,0.00019983,2]
[377824811,1754567453032,-444.98935686,0.00019983,2]
[377824813,1754567453042,-400.0,0.00019983,2]
[377824815,1754567453052,-400.0,0.00019983,2]
[377824817,1754567453061,-528.51,0.00019983,2]
[377824819,1754567453071,-400.0,0.00019983,2]
[377824821,1754567453080,-400.0,0.00019983,2]
[377824823,1754567453090,-2384.51,0.00019983,2]
[377824825,1754567453099,-400.0,0.00019983,2]
[377824827,1754567453110,-4333.81,0.00019983,2]
[377824829,1754567453119,-1012.72,0.00019983,2]
[377824831,1754567453129,-400.0,0.00019983,2]
[377824833,1754567453138,-886.34,0.00019983,2]
[377824835,1754567453147,-1560.14,0.00019983,2]
[377824837,1754567453157,-416.434948,0.00019983,2]
[377824839,1754567453166,-1952.52,0.00019983,2]
[377824841,1754567453175,-1208.29,0.00019983,2]
[377824843,1754567453185,-413.84044084,0.00019983,2]
[377824845,1754567453194,-739.67,0.00019983,2]
[377824876,1754567453609,-151.0,0.00019983,2]
[377824877,1754567453619,-228.24541,0.00019983,2]
[377824878,1754567453629,-400.0,0.00019983,2]
[377824879,1754567453637,-400.0,0.00019983,2]
[377824880,1754567453645,-400.0,0.00019983,2]
[377824881,1754567453654,-1974.05,0.00019983,2]
[377824883,1754567453664,-1318.51,0.00019983,2]
[377824885,1754567453674,-400.0,0.00019983,2]
[377824887,1754567453683,-400.0,0.00019983,2]
[377824889,1754567453693,-400.0,0.00019983,2]
[377824891,1754567453702,-711.42,0.00019983,2]
[377824892,1754567453712,-400.0,0.00019983,2]
[377824894,1754567453722,-1680.73,0.00019983,2]
[377824896,1754567453732,-401.36833293,0.00019983,2]
[377824899,1754567453741,-400.0,0.00019983,2]
[377824901,1754567453751,-2330.65,0.00019983,2]
[377824903,1754567453762,-400.0,0.00019983,2]
[377824905,1754567453773,-400.0,0.00019983,2]
[377824907,1754567453782,-400.0,0.00019983,2]
[377824909,1754567453791,-400.0,0.00019983,2]
[377824911,1754567453801,-400.0,0.00019983,2]
[377824913,1754567453810,-151.0,0.00019983,2]
[377824915,1754567453820,-400.0,0.00019983,2]
[377824917,1754567453829,-1697.94,0.00019983,2]
[377824919,1754567453839,-403.72649066,0.00019983,2]
[377824921,1754567453848,-1598.06,0.00019983,2]
[377824923,1754567453857,-400.0,0.00019983,2]
[377824925,1754567453868,-415.2,0.00019983,2]
[377824927,1754567453882,-402.88819106,0.00019983,2]
[377824929,1754567453892,-151.0,0.00019983,2]
[377824931,1754567453902,-1698.83,0.00019983,2]
[377824933,1754567453913,-400.0,0.00019983,2]
[377824936,1754567453923,-400.0,0.00019983,2]
[377824938,1754567453934,-400.0,0.00019983,2]
[377824940,1754567453944,-404.18127324,0.00019983,2]
[377824942,1754567453955,-400.0,0.00019983,2]
[377824944,1754567453965,-1752.95,0.00019983,2]
[377824946,1754567453975,-435.58,0.00019983,2]
[377824948,1754567453985,-1021.52,0.00019983,2]
[377824950,1754567453995,-2247.16,0.00019983,2]
[377824952,1754567454006,-726.09,0.00019983,2]
[377824954,1754567454016,-1650.09,0.00019983,2]
[377824956,1754567454026,-400.0,0.00019983,2]
[377824958,1754567454036,-151.0,0.00019983,2]
[377824960,1754567454047,-151.0,0.00019983,2]
[377824962,1754567454058,-400.0,0.00019983,2]
[377824964,1754567454068,-400.0,0.00019983,2]
[377824966,1754567454078,-400.0,0.00019983,2]
[377824968,1754567454088,-475.18,0.00019983,2]
[377824970,1754567454097,-1499.3,0.00019983,2]
[377824972,1754567454106,-3007.97,0.00019983,2]
[377824974,1754567454116,-400.0,0.00019983,2]
[377824977,1754567454126,-2124.5,0.00019983,2]
[377824979,1754567454136,-151.0,0.00019983,2]
[377824981,1754567454146,-151.0,0.00019983,2]
[377824983,1754567454155,-151.0,0.00019983,2]
[377824985,1754567454166,-1284.87,0.00019983,2]
[377824987,1754567454175,-400.0,0.00019983,2]
[377824989,1754567454185,-400.0,0.00019983,2]
[377824991,1754567454195,-400.0,0.00019983,2]
[377824993,1754567454206,-1740.3,0.00019983,2]
[377824995,1754567454216,-400.0,0.00019983,2]
[377824997,1754567454225,-1626.06,0.00019983,2]
[377824999,1754567454235,-400.0,0.00019983,2]
[377825001,1754567454244,-151.0,0.00019983,2]
[377825003,1754567454254,-2744.84,0.00019983,2]
[377825005,1754567454265,-1498.52,0.00019983,2]
[377825007,1754567454275,-400.0,0.00019983,2]
[377825009,1754567454285,-400.0,0.00019983,2]
[377825011,1754567454295,-1618.6,0.00019983,2]
[377825013,1754567454305,-400.0,0.00019983,2]
[377825015,1754567454315,-1814.47,0.00019983,2]
[377825017,1754567454325,-400.0,0.00019983,2]
[377825019,1754567454334,-807.94,0.00019983,2]
[377825021,1754567454346,-1563.57,0.00019983,2]
[377825023,1754567454357,-400.0,0.00019983,2]
[377825025,1754567454367,-400.0,0.00019983,2]
[377825027,1754567454377,-400.0,0.00019983,2]
[377825029,1754567454387,-1694.19,0.00019983,2]
[377825031,1754567454397,-863.42,0.00019983,2]
[377825033,1754567454407,-781.29,0.00019983,2]
[377825035,1754567454417,-151.0,0.00019983,2]
[377825037,1754567454426,-151.0,0.00019983,2]
[377825039,1754567454436,-151.0,0.00019983,2]
[377825041,1754567454447,-154.370806,0.00019983,2]
[377825043,1754567454457,-971.59,0.00019983,2]
[377825045,1754567454467,-400.0,0.00019983,2]
[377825047,1754567454476,-3014.06,0.00019983,2]
[377825049,1754567454486,-476.07,0.00019983,2]
[377825051,1754567454497,-1848.19,0.00019983,2]
[377825053,1754567454506,-640.42,0.00019983,2]
[377825055,1754567454519,-151.0,0.00019983,2]
[377825057,1754567454529,-151.0,0.00019983,2]
[377825059,1754567454539,-151.0,0.00019983,2]
[377825061,1754567454549,-400.0,0.00019983,2]
[377825063,1754567454561,-2274.55,0.00019983,2]
[377825065,1754567454571,-2981.08,0.00019983,2]
[377825068,1754567454582,-498.84,0.00019983,2]
[377825070,1754567454592,-400.0,0.00019983,2]
[377825072,1754567454602,-400.0,0.00019983,2]
[377825073,1754567454611,-1629.27,0.00019983,2]
[377825075,1754567454621,-400.0,0.00019984,2]
[377825078,1754567454631,-400.0,0.00019984,2]
[377825080,1754567454641,-400.0,0.00019984,2]
[377825082,1754567454651,-400.0,0.00019984,2]
[377825084,1754567454661,-400.0,0.00019984,2]
[377825086,1754567454670,-218.92651604,0.00019984,2]
[377825088,1754567454680,-300.0,0.00019984,2]
[377825090,1754567454690,-400.0,0.00019984,2]
[377825092,1754567454700,-400.0,0.00019984,2]
[377825093,1754567454710,-400.0,0.00019984,2]
[377825094,1754567454719,-400.0,0.00019984,2]
[377825095,1754567454728,-400.0,0.00019984,2]
[377825096,1754567454738,-400.0,0.00019984,2]
[377825097,1754567454747,-400.0,0.00019984,2]
[377825098,1754567454758,-400.0,0.00019984,2]
[377825099,1754567454767,-401.12671263,0.00019984,2]
[377825100,1754567454777,-400.0,0.00019984,2]
[377825101,1754567454787,-400.0,0.00019984,2]
[377825102,1754567454797,-400.0,0.00019984,2]
[377825103,1754567454811,-400.0,0.00019984,2]
[377825104,1754567454827,-400.0,0.00019984,2]
[377825106,1754567454837,-400.0,0.00019984,2]
[377825108,1754567454846,-400.0,0.00019984,2]
[377825110,1754567454857,-400.0,0.00019984,2]
[377825112,1754567454866,-400.0,0.00019984,2]
[377825114,1754567454876,-400.0,0.00019984,2]
[377825116,1754567454886,-400.0,0.00019984,2]
[377825118,1754567454897,-400.0,0.00019984,2]
[377825120,1754567454907,-400.0,0.00019984,2]
[377825122,1754567454917,-402.0,0.00019984,2]
[377825124,1754567454926,-320.65245566,0.00019984,2]
[377825126,1754567454936,-155.189606,0.00019984,2]
[377825128,1754567454946,-262.252644,0.00019984,2]
[377825130,1754567454955,-400.0,0.00019984,2]
[377825132,1754567454965,-400.0,0.00019984,2]
[377825134,1754567454976,-400.0,0.00019984,2]
[377825136,1754567454986,-400.0,0.00019984,2]
[377825138,1754567454995,-400.0,0.00019984,2]
[377825140,1754567455007,-400.0,0.00019984,2]
[377825143,1754567455017,-400.0,0.00019984,2]
[377825145,1754567455026,-500.0,0.00019984,2]
[377825147,1754567455036,-500.0,0.00019984,2]
[377825149,1754567455046,-402.05125508,0.00019984,2]
[377825151,1754567455055,-400.0,0.00019984,2]
[377825153,1754567455066,-959.3,0.00019984,2]
[377825155,1754567455075,-959.3,0.00019984,2]
[377825157,1754567455085,-2428.83,0.00019984,2]
[377825159,1754567455094,-400.0,0.00019984,2]
[377825161,1754567455104,-400.0,0.00019984,2]
[377825163,1754567455114,-861.98,0.00019984,2]
[377825165,1754567455125,-400.0,0.00019984,2]
[377825167,1754567455134,-151.0,0.00019984,2]
[377825169,1754567455143,-151.0,0.00019984,2]
[377825171,1754567455153,-1330.8,0.00019984,2]
[377825172,1754567455163,-400.0,0.00019984,2]
[377825174,1754567455172,-1553.48,0.00019984,2]
[377825176,1754567455182,-400.0,0.00019984,2]
[377825178,1754567455191,-157.711002,0.00019984,2]
[377825181,1754567455202,-200.0,0.00019984,2]
[377825183,1754567455211,-200.0,0.00019984,2]
[377825185,1754567455221,-200.0,0.00019984,2]
[377825186,1754567455231,-200.0,0.00019984,2]
[377825189,1754567455241,-200.0,0.00019984,2]
[377825191,1754567455250,-208.784976,0.00019984,2]
[377825193,1754567455261,-1084.86,0.00019984,2]
[377825195,1754567455271,-400.0,0.00019984,2]
[377825197,1754567455281,-2001.47,0.00019984,2]
[377825199,1754567455291,-151.0,0.00019984,2]
[377825201,1754567455301,-2402.61,0.00019984,2]
[377825203,1754567455310,-400.0,0.00019984,2]
[377825205,1754567455319,-500.0,0.00019984,2]
[377825207,1754567455329,-500.0,0.00019984,2]
[377825209,1754567455338,-888.52,0.00019984,2]
[377825211,1754567455347,-400.0,0.00019984,2]
[377825213,1754567455357,-400.0,0.00019984,2]
[377825215,1754567455367,-2397.08,0.00019984,2]
[377825217,1754567455376,-400.0,0.00019984,2]
[377825219,1754567455386,-2600.02,0.00019984,2]
[377825221,1754567455395,-2136.76,0.00019984,2]
[377825223,1754567455405,-1653.39,0.00019984,2]
[377825225,1754567455415,-989.97,0.00019984,2]
[377825227,1754567455424,-500.0,0.00019984,2]
[377825229,1754567455434,-500.0,0.00019984,2]
[377825231,1754567455445,-151.0,0.00019984,2]
[377825233,1754567455455,-400.0,0.00019984,2]
[377825235,1754567455465,-151.0,0.00019984,2]
[377825237,1754567455475,-513.08,0.00019984,2]
[377825239,1754567455485,-1709.66,0.00019984,2]
[377825241,1754567455496,-872.79,0.00019984,2]
[377825243,1754567455506,-151.0,0.00019984,2]
[377825245,1754567455518,-718.38,0.00019984,2]
[377825247,1754567455528,-400.0,0.00019984,2]